{"text_format":"3","workbook":"xlsx","n_sheets":2,"sheets":["Traccia conferma partecipazione","Sintesi conferma partecipazione"],"not_rendered":{"charts":2,"defined_names":22},"read":"whole","date_system":"1900"}

{"sheet":"Traccia conferma partecipazione","index":0,"n_rows":15,"n_cols":15,"rows_kept":15,"merged":[[0,3,0,4],[0,5,0,7],[1,3,1,14]]}
[{"$nulls":5},"RIEPILOGO CONFERMA PARTECIPAZIONE"]
[null,"DATA DEL MATRIMONIO:",null,"strumento di traccia degli inviti al matrimonio"]
[null,{"$f":"TODAY()+283","v":"2019-06-24"},null,"NOME INVITATO","INVIATO?","Conferma di partecipazione","FESTA","INVITATO","RELAZIONE","INDIRIZZO","CITTÀ","PROVINCIA","Codice","TELEFONO","POSTA ELETTRONICA CONTATTO"]
[null,"GIORNI RIMANENTI",null,"Nome 1","Sì","Sì",1,"Sposo 1","Fratello","Indirizzo","Città","Provincia","Codice","Telefono","prova@example.com"]
[null,{"$f":"GiorniRimanenti","v":283},null,"Nome 2","Sì","No",3,"Sposo 1","Amico","Indirizzo","Città","Provincia","Codice","Telefono","prova@example.com"]
[null,"PARTECIPANTI",null,"Nome 3","Sì","Sì",1,"Altro","Amico","Indirizzo","Città","Provincia","Codice","Telefono","prova@example.com"]
[null,{"$f":"TotalePartecipanti","v":12},null,"Nome 4","Sì","No",2,"Sposo 2","Amico","Indirizzo","Città","Provincia","Codice","Telefono","prova@example.com"]
[null,"NON PARTECIPANTI",null,"Nome 5","Sì","Sì",2,"Sposo 2","Amico","Indirizzo","Città","Provincia","Codice","Telefono","prova@example.com"]
[null,{"$f":"TotaleNonPartecipanti","v":6},null,"Nome 6","Sì","Provvisorio",null,"Altro","Amico","Indirizzo","Città","Provincia","Codice","Telefono","prova@example.com"]
[null,"IN SOSPESO",null,"Nome 7","Sì","Sì",2,"Sposo 2","Amico","Indirizzo","Città","Provincia","Codice","Telefono","prova@example.com"]
[null,{"$f":"ConfermaInSospeso","v":1},null,"Nome 8","Sì","No",1,"Altro","Amico","Indirizzo","Città","Provincia","Codice","Telefono","prova@example.com"]
[{"$nulls":3},"Nome 9","Sì","Sì",4,"Sposo 1","Amico","Indirizzo","Città","Provincia","Codice","Telefono","prova@example.com"]
[{"$nulls":3},"Nome 10","Sì","Sì",2,"Sposo 1","Amico","Indirizzo","Città","Provincia","Codice","Telefono","prova@example.com"]
[{"$nulls":3},"Nome 11","Sì",null,null,"Sposo 2","Fratello","Indirizzo","Città","Provincia","Codice","Telefono","prova@example.com"]
[{"$nulls":3},"TOTALI:",{"$f":"COUNTIF('Traccia conferma partecipazione'!$E$4:$E$14,\"Sì\")","v":11},{"$f":"COUNTA('Traccia conferma partecipazione'!$F$4:$F$14)","v":10},{"$f":"SUBTOTAL(109,tblInviti[FESTA])","v":18}]

{"sheet":"Sintesi conferma partecipazione","index":1,"n_rows":11,"n_cols":15,"rows_kept":11,"merged":[[0,3,0,4],[0,5,0,8],[1,3,1,11],[2,3,6,3],[2,4,6,4],[7,3,11,3],[7,4,11,4]]}
[{"$nulls":3},"TRACCIA CONFERMA PARTECIPAZIONE"]
[null,"DATA DEL MATRIMONIO:",null,"sintesi conferma partecipazione",{"$nulls":10},"note"]
[null,{"$f":"DataMatrimonio","v":"2019-06-24"},null,"SÌ","Grafico a barre raggruppate che mostra i tipi di invitati per Conferma di partecipazione Sì in questa cella."]
[null,"GIORNI RIMANENTI",{"$nulls":3},"ALTRO",{"$f":"IFERROR(SUMIFS(tblInviti[FESTA],tblInviti[INVITATO],\"=Altro\",tblInviti[Conferma di partecipazione],\"Sì\"),0)","v":1},{"$f":"tblInviti[[#Totals],[INVIATO?]]","v":11}]
[null,{"$f":"GiorniRimanenti","v":283},{"$nulls":3},"SPOSO 2",{"$f":"IFERROR(SUMIFS(tblInviti[FESTA],tblInviti[INVITATO],\"=Sposo 2\",tblInviti[Conferma di partecipazione],\"Sì\"),0)","v":4},{"$f":"tblInviti[[#Totals],[INVIATO?]]","v":11}]
[null,"PARTECIPANTI",{"$nulls":3},"SPOSO 1",{"$f":"IFERROR(SUMIFS(tblInviti[FESTA],tblInviti[INVITATO],\"=Sposo 1\",tblInviti[Conferma di partecipazione],\"Sì\"),0)","v":7},{"$f":"tblInviti[[#Totals],[INVIATO?]]","v":11}]
[null,{"$f":"TotalePartecipanti","v":12}]
[null,"NON PARTECIPANTI",null,"NO","Grafico a barre raggruppate che mostra i tipi di invitati per Conferma di partecipazione No in questa cella."]
[null,{"$f":"TotaleNonPartecipanti","v":6},{"$nulls":3},"ALTRO",{"$f":"IFERROR(SUMIFS(tblInviti[FESTA],tblInviti[INVITATO],\"=Altro\",tblInviti[Conferma di partecipazione],\"No\"),0)","v":1},{"$f":"tblInviti[[#Totals],[INVIATO?]]","v":11}]
[null,"IN SOSPESO",{"$nulls":3},"SPOSO 2",{"$f":"IFERROR(SUMIFS(tblInviti[FESTA],tblInviti[INVITATO],\"=Sposo 2\",tblInviti[Conferma di partecipazione],\"No\"),0)","v":2},{"$f":"tblInviti[[#Totals],[INVIATO?]]","v":11}]
[null,{"$f":"ConfermaInSospeso","v":1},{"$nulls":3},"SPOSO 1",{"$f":"IFERROR(SUMIFS(tblInviti[FESTA],tblInviti[INVITATO],\"=Sposo 1\",tblInviti[Conferma di partecipazione],\"No\"),0)","v":3},{"$f":"tblInviti[[#Totals],[INVIATO?]]","v":11}]